[Event "Early-Titled-Tuesday-Blitz-March-05-2024"]
[Site "Chess.com"]
[Date "2024.03.05"]
[Round "9"]
[White "Veganator13"]
[Black "viktorgen2021"]
[Result "1-0"]
[WhiteElo "2366"]
[BlackElo "2482"]
[TimeControl "180+1"]
[EndTime "9:46:54 PST"]
[Termination "Veganator13 won by resignation"]

1. c4 {[%clk 0:03:00.3]} 1... Nf6 {[%clk 0:02:56.6]} 2. g3 {[%clk 0:03:00.2]}
2... g6 {[%clk 0:02:54.8]} 3. Bg2 {[%clk 0:03:00.2]} 3... Bg7 {[%clk 0:02:55.4]}
4. Nc3 {[%clk 0:03:00]} 4... O-O {[%clk 0:02:54.8]} 5. e4 {[%clk 0:02:59.7]}
5... d6 {[%clk 0:02:53.5]} 6. Nge2 {[%clk 0:03:00.2]} 6... c5 {[%clk 0:02:52.6]}
7. O-O {[%clk 0:03:00.8]} 7... Nc6 {[%clk 0:02:50.7]} 8. d3 {[%clk 0:03:01.4]}
8... e5 {[%clk 0:02:49.9]} 9. Nd5 {[%clk 0:02:58.4]} 9... Nxd5 {[%clk
0:02:45.5]} 10. cxd5 {[%clk 0:02:59.3]} 10... Nd4 {[%clk 0:02:41.5]} 11. Nxd4
{[%clk 0:02:59.9]} 11... cxd4 {[%clk 0:02:40.9]} 12. Qb3 {[%clk 0:03:00.4]}
12... f5 {[%clk 0:02:38.5]} 13. f4 {[%clk 0:02:55.8]} 13... fxe4 {[%clk
0:02:05.2]} 14. dxe4 {[%clk 0:02:54.7]} 14... Bg4 {[%clk 0:02:04.2]} 15. Rf2
{[%clk 0:02:46]} 15... exf4 {[%clk 0:01:58.6]} 16. gxf4 {[%clk 0:02:45]} 16...
Rc8 {[%clk 0:01:55.9]} 17. Bd2 {[%clk 0:02:43.3]} 17... a6 {[%clk 0:01:32.4]}
18. h3 {[%clk 0:02:37.4]} 18... Bh5 {[%clk 0:01:30.5]} 19. Bb4 {[%clk
0:02:24.1]} 19... b5 {[%clk 0:01:27.3]} 20. Qa3 {[%clk 0:02:21.6]} 20... Rf6
{[%clk 0:01:16.3]} 21. Qxa6 {[%clk 0:02:20.5]} 21... d3 {[%clk 0:01:07.4]} 22.
Qxb5 {[%clk 0:02:02.5]} 22... Be2 {[%clk 0:01:05.8]} 23. Bc3 {[%clk 0:01:56.2]}
23... Rf7 {[%clk 0:01:03.4]} 24. Bxg7 {[%clk 0:01:54]} 24... Kxg7 {[%clk
0:01:04.3]} 25. Bf1 {[%clk 0:01:31.3]} 25... d2 {[%clk 0:00:25.8]} 26. Bxe2
{[%clk 0:00:53.6]} 26... Rc1+ {[%clk 0:00:21.3]} 27. Rf1 {[%clk 0:00:53.5]}
27... Rxf4 {[%clk 0:00:18.4]} 28. Raxc1 {[%clk 0:00:33.6]} 28... Qg5+ {[%clk
0:00:16.6]} 29. Kh1 {[%clk 0:00:31.6]} 29... dxc1=Q {[%clk 0:00:12.7]} 30. Qd7+
{[%clk 0:00:18.3]} 30... Kh6 {[%clk 0:00:12.4]} 31. Rxc1 {[%clk 0:00:17.9]}
31... Rxe4 {[%clk 0:00:09.1]} 32. Rc7 {[%clk 0:00:11.9]} 32... Re7 {[%clk
0:00:03]} 33. Qxe7 {[%clk 0:00:11.3]} 33... Qxd5+ {[%clk 0:00:03.7]} 34. Kg1
{[%clk 0:00:11.4]} 34... Qd4+ {[%clk 0:00:04.3]} 35. Kf1 {[%clk 0:00:11.5]}
35... Qf4+ {[%clk 0:00:04.1]} 36. Ke1 {[%clk 0:00:11.1]} 36... Qb4+ {[%clk
0:00:04.1]} 37. Kf2 {[%clk 0:00:10.9]} 37... Qf4+ {[%clk 0:00:04]} 38. Bf3
{[%clk 0:00:11.4]} 38... Qd2+ {[%clk 0:00:02.3]} 39. Qe2 {[%clk 0:00:11]} 39...
Qd4+ {[%clk 0:00:02.1]} 40. Qe3+ {[%clk 0:00:11]} 40... Qxe3+ {[%clk 0:00:02.5]}
41. Kxe3 {[%clk 0:00:11.4]} 1-0

[Event "Early-Titled-Tuesday-Blitz-March-05-2024"]
[Site "Chess.com"]
[Date "2024.03.05"]
[Round "9"]
[White "Gryffindorac8"]
[Black "sergeikim"]
[Result "0-1"]
[WhiteElo "2380"]
[BlackElo "2574"]
[TimeControl "180+1"]
[EndTime "9:46:54 PST"]
[Termination "sergeikim won on time"]

1. d4 {[%clk 0:03:00.9]} 1... Nf6 {[%clk 0:02:59.4]} 2. c4 {[%clk 0:03:00.7]}
2... g6 {[%clk 0:02:59.7]} 3. Nc3 {[%clk 0:02:59.8]} 3... Bg7 {[%clk 0:03:00]}
4. e4 {[%clk 0:02:59.9]} 4... d6 {[%clk 0:03:00.3]} 5. Nf3 {[%clk 0:02:59.7]}
5... O-O {[%clk 0:03:00.2]} 6. h3 {[%clk 0:03:00.1]} 6... e5 {[%clk 0:03:00.3]}
7. d5 {[%clk 0:03:00.4]} 7... a5 {[%clk 0:03:00.2]} 8. Be3 {[%clk 0:03:00.4]}
8... Na6 {[%clk 0:03:00]} 9. g4 {[%clk 0:02:59.9]} 9... Nc5 {[%clk 0:03:00]} 10.
Nd2 {[%clk 0:02:59.8]} 10... Bd7 {[%clk 0:02:59.9]} 11. Be2 {[%clk 0:02:59.3]}
11... c6 {[%clk 0:02:58.1]} 12. h4 {[%clk 0:02:58]} 12... Ne8 {[%clk 0:02:54.7]}
13. g5 {[%clk 0:02:34.5]} 13... a4 {[%clk 0:02:53.7]} 14. h5 {[%clk 0:02:18.1]}
14... Nc7 {[%clk 0:02:53.2]} 15. Bxc5 {[%clk 0:01:46.9]} 15... dxc5 {[%clk
0:02:52.4]} 16. Bg4 {[%clk 0:01:46.2]} 16... Bc8 {[%clk 0:02:26.1]} 17. h6
{[%clk 0:01:32.8]} 17... Bh8 {[%clk 0:02:25.3]} 18. Bxc8 {[%clk 0:01:30.9]}
18... Qxc8 {[%clk 0:02:16.4]} 19. Qe2 {[%clk 0:01:24.2]} 19... Qd8 {[%clk
0:02:07.5]} 20. Qe3 {[%clk 0:01:21.6]} 20... b6 {[%clk 0:02:01.8]} 21. O-O-O
{[%clk 0:01:18.9]} 21... cxd5 {[%clk 0:01:53]} 22. Nxd5 {[%clk 0:01:07.5]} 22...
Ne6 {[%clk 0:01:42]} 23. Nf3 {[%clk 0:01:01.9]} 23... Nd4 {[%clk 0:01:41.3]} 24.
Nxd4 {[%clk 0:00:59.7]} 24... cxd4 {[%clk 0:01:38.3]} 25. Qd2 {[%clk 0:00:52.1]}
25... Rc8 {[%clk 0:01:35]} 26. Kb1 {[%clk 0:00:47]} 26... f6 {[%clk 0:01:24.7]}
27. gxf6 {[%clk 0:00:34.8]} 27... Bxf6 {[%clk 0:01:24.6]} 28. f4 {[%clk
0:00:31]} 28... exf4 {[%clk 0:01:20.9]} 29. Qxf4 {[%clk 0:00:22.8]} 29... Bh8
{[%clk 0:01:05]} 30. Qg4 {[%clk 0:00:20.4]} 30... Qd6 {[%clk 0:00:59.5]} 31.
Rhf1 {[%clk 0:00:18.5]} 31... Qe5 {[%clk 0:00:50.7]} 32. Rxf8+ {[%clk
0:00:15.6]} 32... Rxf8 {[%clk 0:00:49.3]} 33. Qd7 {[%clk 0:00:15.6]} 33... Qxe4+
{[%clk 0:00:35]} 34. Ka1 {[%clk 0:00:15.5]} 34... Re8 {[%clk 0:00:29.1]} 35. a3
{[%clk 0:00:12.6]} 35... Qe6 {[%clk 0:00:19.8]} 36. Qb7 {[%clk 0:00:09.7]} 36...
d3 {[%clk 0:00:18.9]} 37. Rxd3 {[%clk 0:00:08.5]} 37... Qe4 {[%clk 0:00:13.7]}
38. Rd1 {[%clk 0:00:07]} 38... Qe5 {[%clk 0:00:12.8]} 39. Rb1 {[%clk 0:00:05.1]}
39... Qd6 {[%clk 0:00:10.7]} 40. Rf1 {[%clk 0:00:03.8]} 40... Qxa3+ {[%clk
0:00:09]} 0-1

[Event "Early-Titled-Tuesday-Blitz-March-05-2024"]
[Site "Chess.com"]
[Date "2024.03.05"]
[Round "9"]
[White "Elsa167"]
[Black "vovachesss"]
[Result "1-0"]
[WhiteElo "2926"]
[BlackElo "2798"]
[TimeControl "180+1"]
[EndTime "9:46:56 PST"]
[Termination "Elsa167 won on time"]

1. d4 {[%clk 0:03:00.9]} 1... d6 {[%clk 0:02:58.6]} 2. Nf3 {[%clk 0:02:54.8]}
2... Nf6 {[%clk 0:02:56.5]} 3. c4 {[%clk 0:02:51.1]} 3... g6 {[%clk 0:02:55.3]}
4. Nc3 {[%clk 0:02:51.4]} 4... Bf5 {[%clk 0:02:56]} 5. g3 {[%clk 0:02:47.6]}
5... Ne4 {[%clk 0:02:56]} 6. Nxe4 {[%clk 0:02:46.5]} 6... Bxe4 {[%clk
0:02:56.9]} 7. Bg2 {[%clk 0:02:46.6]} 7... Bg7 {[%clk 0:02:57.6]} 8. O-O {[%clk
0:02:46]} 8... O-O {[%clk 0:02:58.3]} 9. b3 {[%clk 0:02:45.8]} 9... c5 {[%clk
0:02:57.5]} 10. Bb2 {[%clk 0:02:46]} 10... Nc6 {[%clk 0:02:58.2]} 11. e3 {[%clk
0:02:43.3]} 11... cxd4 {[%clk 0:02:55.5]} 12. Nxd4 {[%clk 0:02:37.1]} 12... Bxg2
{[%clk 0:02:55.5]} 13. Kxg2 {[%clk 0:02:37.1]} 13... Qb6 {[%clk 0:01:58]} 14.
Qd2 {[%clk 0:02:23.7]} 14... Nxd4 {[%clk 0:01:56.8]} 15. Bxd4 {[%clk 0:02:10.3]}
15... Bxd4 {[%clk 0:01:56.6]} 16. exd4 {[%clk 0:02:03.8]} 16... d5 {[%clk
0:01:56.2]} 17. c5 {[%clk 0:02:01.4]} 17... Qb5 {[%clk 0:01:38.7]} 18. Rfe1
{[%clk 0:01:59.9]} 18... e6 {[%clk 0:01:38.4]} 19. h4 {[%clk 0:01:19.9]} 19...
b6 {[%clk 0:01:16.9]} 20. cxb6 {[%clk 0:01:15.7]} 20... Qxb6 {[%clk 0:01:06.7]}
21. h5 {[%clk 0:01:15.4]} 21... Rfc8 {[%clk 0:01:06.4]} 22. Rh1 {[%clk
0:00:52.9]} 22... Qd8 {[%clk 0:01:05.8]} 23. hxg6 {[%clk 0:00:40.1]} 23... fxg6
{[%clk 0:00:59]} 24. Rae1 {[%clk 0:00:27.1]} 24... Qf6 {[%clk 0:00:57.4]} 25.
Re3 {[%clk 0:00:25.1]} 25... Rf8 {[%clk 0:00:56.3]} 26. Rhe1 {[%clk 0:00:24.2]}
26... Rae8 {[%clk 0:00:54.4]} 27. f4 {[%clk 0:00:21.4]} 27... Re7 {[%clk
0:00:45.8]} 28. Re5 {[%clk 0:00:20.2]} 28... Rc8 {[%clk 0:00:44]} 29. R1e2
{[%clk 0:00:18.2]} 29... Rc6 {[%clk 0:00:44]} 30. Qe3 {[%clk 0:00:18.1]} 30...
Kf7 {[%clk 0:00:42.8]} 31. Qd3 {[%clk 0:00:15.7]} 31... Rec7 {[%clk 0:00:42.3]}
32. Qf3 {[%clk 0:00:09.4]} 32... h5 {[%clk 0:00:41.3]} 33. Qd3 {[%clk
0:00:06.8]} 33... h4 {[%clk 0:00:37]} 34. gxh4 {[%clk 0:00:06.6]} 34... Rc3
{[%clk 0:00:35]} 35. Qa6 {[%clk 0:00:04.5]} 35... R3c6 {[%clk 0:00:17.7]} 36.
Qd3 {[%clk 0:00:04.5]} 36... Rc3 {[%clk 0:00:14.2]} 37. Qa6 {[%clk 0:00:04.6]}
37... Qxh4 {[%clk 0:00:05.3]} 38. Qxe6+ {[%clk 0:00:03.8]} 38... Kg7 {[%clk
0:00:06.2]} 39. R5e3 {[%clk 0:00:02.9]} 39... Rc1 {[%clk 0:00:06.6]} 40. Qe5+
{[%clk 0:00:02.8]} 40... Kg8 {[%clk 0:00:02.9]} 41. Qe8+ {[%clk 0:00:02.3]}
41... Kg7 {[%clk 0:00:01.7]} 42. Re7+ {[%clk 0:00:03.2]} 1-0

[Event "Early-Titled-Tuesday-Blitz-March-05-2024"]
[Site "Chess.com"]
[Date "2024.03.05"]
[Round "9"]
[White "Boorchess"]
[Black "jk13"]
[Result "0-1"]
[WhiteElo "2517"]
[BlackElo "2685"]
[TimeControl "180+1"]
[EndTime "9:46:58 PST"]
[Termination "jk13 won on time"]

1. d4 {[%clk 0:03:00.9]} 1... Nf6 {[%clk 0:02:58.2]} 2. Bg5 {[%clk 0:03:00.6]}
2... Ne4 {[%clk 0:02:57.2]} 3. Bf4 {[%clk 0:03:00.6]} 3... Nc6 {[%clk
0:02:57.2]} 4. f3 {[%clk 0:02:53.7]} 4... Nf6 {[%clk 0:02:57.1]} 5. e4 {[%clk
0:02:51.9]} 5... d5 {[%clk 0:02:57.8]} 6. e5 {[%clk 0:02:50.6]} 6... Nd7 {[%clk
0:02:58.6]} 7. c3 {[%clk 0:02:38]} 7... Nb6 {[%clk 0:02:59.2]} 8. Bd3 {[%clk
0:02:29.7]} 8... g6 {[%clk 0:02:59.6]} 9. Qc2 {[%clk 0:02:23.4]} 9... Bg7 {[%clk
0:02:59.1]} 10. Be3 {[%clk 0:02:19.8]} 10... f6 {[%clk 0:02:53.1]} 11. f4 {[%clk
0:02:18.6]} 11... O-O {[%clk 0:02:52.5]} 12. Nf3 {[%clk 0:02:18.6]} 12... fxe5
{[%clk 0:02:51.1]} 13. fxe5 {[%clk 0:02:18.6]} 13... Bf5 {[%clk 0:02:50.2]} 14.
Nbd2 {[%clk 0:02:14.8]} 14... e6 {[%clk 0:02:48]} 15. h3 {[%clk 0:02:06.2]}
15... a5 {[%clk 0:02:41.3]} 16. g4 {[%clk 0:02:05]} 16... Bxd3 {[%clk
0:02:41.9]} 17. Qxd3 {[%clk 0:02:05.1]} 17... a4 {[%clk 0:02:41.8]} 18. O-O
{[%clk 0:02:01.4]} 18... Na5 {[%clk 0:02:37.8]} 19. b3 {[%clk 0:01:58.9]} 19...
Qd7 {[%clk 0:02:35.2]} 20. h4 {[%clk 0:01:52.6]} 20... Nc6 {[%clk 0:02:24.7]}
21. h5 {[%clk 0:01:48.8]} 21... axb3 {[%clk 0:02:20.6]} 22. axb3 {[%clk
0:01:48.4]} 22... Rxa1 {[%clk 0:02:21.5]} 23. Rxa1 {[%clk 0:01:48]} 23... Qe8
{[%clk 0:02:13.9]} 24. h6 {[%clk 0:01:42.4]} 24... Bh8 {[%clk 0:02:14.2]} 25.
Ng5 {[%clk 0:01:38.1]} 25... Nd7 {[%clk 0:02:04.6]} 26. Ndf3 {[%clk 0:01:35.2]}
26... Qe7 {[%clk 0:01:55]} 27. b4 {[%clk 0:01:27.6]} 27... Nb6 {[%clk 0:01:52]}
28. Rf1 {[%clk 0:01:23]} 28... Nc4 {[%clk 0:01:50.3]} 29. Bc1 {[%clk 0:01:20.7]}
29... Nb8 {[%clk 0:01:44]} 30. Kg2 {[%clk 0:01:17.8]} 30... Nd7 {[%clk
0:01:43.7]} 31. Rf2 {[%clk 0:01:11.8]} 31... c6 {[%clk 0:01:42]} 32. Qf1 {[%clk
0:01:10]} 32... b6 {[%clk 0:01:37.3]} 33. Nh3 {[%clk 0:01:02.8]} 33... c5 {[%clk
0:01:24.4]} 34. bxc5 {[%clk 0:00:59.3]} 34... bxc5 {[%clk 0:01:24.7]} 35. Bg5
{[%clk 0:00:54.4]} 35... Qe8 {[%clk 0:01:14.5]} 36. Bc1 {[%clk 0:00:45.6]} 36...
Ndb6 {[%clk 0:00:50.7]} 37. Nfg5 {[%clk 0:00:38]} 37... Rxf2+ {[%clk 0:00:50.4]}
38. Qxf2 {[%clk 0:00:38]} 38... Nd7 {[%clk 0:00:38.5]} 39. Nxh7 {[%clk
0:00:34.2]} 39... Kxh7 {[%clk 0:00:28.8]} 40. Ng5+ {[%clk 0:00:33.4]} 40... Kg8
{[%clk 0:00:29]} 41. h7+ {[%clk 0:00:28.9]} 41... Kg7 {[%clk 0:00:29.1]} 42. Bf4
{[%clk 0:00:15.6]} 42... cxd4 {[%clk 0:00:27.4]} 43. cxd4 {[%clk 0:00:15.7]}
43... Nf8 {[%clk 0:00:26.7]} 44. Qh4 {[%clk 0:00:13.4]} 44... Qe7 {[%clk
0:00:16.8]} 45. Qh3 {[%clk 0:00:07.4]} 45... Qb7 {[%clk 0:00:14.5]} 46. Nxe6+
{[%clk 0:00:06.3]} 46... Nxe6 {[%clk 0:00:13.8]} 47. Qh6+ {[%clk 0:00:06.3]}
47... Kf7 {[%clk 0:00:13.8]} 48. Bd2 {[%clk 0:00:04.6]} 48... Nxd2 {[%clk
0:00:11.1]} 49. Qxd2 {[%clk 0:00:03.9]} 49... Kg7 {[%clk 0:00:10.9]} 0-1

[Event "Early-Titled-Tuesday-Blitz-March-05-2024"]
[Site "Chess.com"]
[Date "2024.03.05"]
[Round "9"]
[White "GreenPeach24"]
[Black "ACollins05"]
[Result "1-0"]
[WhiteElo "2498"]
[BlackElo "2599"]
[TimeControl "180+1"]
[EndTime "9:47:00 PST"]
[Termination "GreenPeach24 won by checkmate"]

1. d4 {[%clk 0:03:00.9]} 1... d5 {[%clk 0:02:56.9]} 2. Bf4 {[%clk 0:02:59.8]}
2... Nf6 {[%clk 0:02:56.3]} 3. e3 {[%clk 0:02:59.7]} 3... e6 {[%clk 0:02:56.6]}
4. Nf3 {[%clk 0:02:59.4]} 4... Bd6 {[%clk 0:02:57.1]} 5. Bg3 {[%clk 0:02:59.9]}
5... O-O {[%clk 0:02:57.3]} 6. Nbd2 {[%clk 0:03:00.1]} 6... c5 {[%clk
0:02:57.7]} 7. dxc5 {[%clk 0:03:00.3]} 7... Bxc5 {[%clk 0:02:56.8]} 8. c4 {[%clk
0:03:00.9]} 8... Nc6 {[%clk 0:02:53.6]} 9. a3 {[%clk 0:03:00.8]} 9... a5 {[%clk
0:02:43.1]} 10. Qc2 {[%clk 0:03:00.5]} 10... Bd6 {[%clk 0:02:34.3]} 11. Bd3
{[%clk 0:02:58.3]} 11... h6 {[%clk 0:02:27.5]} 12. Bxd6 {[%clk 0:02:41.8]} 12...
Qxd6 {[%clk 0:02:26.9]} 13. O-O {[%clk 0:02:42.4]} 13... Rd8 {[%clk 0:02:23.6]}
14. Rfd1 {[%clk 0:02:40.1]} 14... b6 {[%clk 0:02:22.5]} 15. cxd5 {[%clk
0:02:38.4]} 15... Nxd5 {[%clk 0:02:22.5]} 16. Nc4 {[%clk 0:02:34.2]} 16... Qc5
{[%clk 0:02:17.5]} 17. Rac1 {[%clk 0:02:25.5]} 17... Bb7 {[%clk 0:02:02]} 18.
Qe2 {[%clk 0:02:23.9]} 18... Qe7 {[%clk 0:01:57.8]} 19. Be4 {[%clk 0:02:15.4]}
19... b5 {[%clk 0:01:53.4]} 20. Bxd5 {[%clk 0:02:15]} 20... Rxd5 {[%clk
0:01:48.4]} 21. Rxd5 {[%clk 0:02:14]} 21... exd5 {[%clk 0:01:49.3]} 22. Nb6
{[%clk 0:02:11.6]} 22... Rd8 {[%clk 0:01:43.7]} 23. Qxb5 {[%clk 0:02:11.3]}
23... d4 {[%clk 0:01:31.4]} 24. Nd5 {[%clk 0:02:08.9]} 24... Qd7 {[%clk
0:01:23.4]} 25. e4 {[%clk 0:02:04.6]} 25... Ne5 {[%clk 0:01:18.7]} 26. Qxd7
{[%clk 0:01:58.6]} 26... Nxf3+ {[%clk 0:01:17.9]} 27. gxf3 {[%clk 0:01:58.3]}
27... Rxd7 {[%clk 0:01:18.4]} 28. Rc7 {[%clk 0:01:47.6]} 28... Rxc7 {[%clk
0:01:16.8]} 29. Nxc7 {[%clk 0:01:48.5]} 29... Kf8 {[%clk 0:01:17.2]} 30. Kf1
{[%clk 0:01:46.9]} 30... Ke7 {[%clk 0:01:16.9]} 31. Ke1 {[%clk 0:01:46.8]} 31...
Bc6 {[%clk 0:01:11.6]} 32. b4 {[%clk 0:01:13.8]} 32... axb4 {[%clk 0:01:09.8]}
33. axb4 {[%clk 0:01:13.6]} 33... Kd6 {[%clk 0:01:10.3]} 34. Na6 {[%clk
0:01:12.3]} 34... Ke5 {[%clk 0:01:08.5]} 35. Nc5 {[%clk 0:01:07.5]} 35... Kf4
{[%clk 0:01:06]} 36. Nb3 {[%clk 0:01:07.6]} 36... Ke5 {[%clk 0:00:56.5]} 37. Kd2
{[%clk 0:01:06]} 37... Ba4 {[%clk 0:00:55.1]} 38. Nc5 {[%clk 0:01:03.3]} 38...
Bb5 {[%clk 0:00:54]} 39. Nd3+ {[%clk 0:01:03.2]} 39... Ke6 {[%clk 0:00:47.5]}
40. f4 {[%clk 0:01:01.9]} 40... f5 {[%clk 0:00:45.2]} 41. f3 {[%clk 0:01:01.7]}
41... Bc6 {[%clk 0:00:40.5]} 42. Nc5+ {[%clk 0:01:00.6]} 42... Kd6 {[%clk
0:00:39.9]} 43. Kd3 {[%clk 0:01:00.3]} 43... g5 {[%clk 0:00:39]} 44. fxg5 {[%clk
0:00:57.9]} 44... hxg5 {[%clk 0:00:39.9]} 45. Kxd4 {[%clk 0:00:57.5]} 45... g4
{[%clk 0:00:40.1]} 46. fxg4 {[%clk 0:00:53]} 46... fxg4 {[%clk 0:00:38.4]} 47.
e5+ {[%clk 0:00:53.2]} 47... Ke7 {[%clk 0:00:38.6]} 48. e6 {[%clk 0:00:52.7]}
48... Kd6 {[%clk 0:00:37.9]} 49. Ke3 {[%clk 0:00:49.7]} 49... Bb5 {[%clk
0:00:35.7]} 50. Kf4 {[%clk 0:00:47.7]} 50... Be2 {[%clk 0:00:36.1]} 51. Kf5
{[%clk 0:00:48]} 51... Ke7 {[%clk 0:00:32.9]} 52. Ke5 {[%clk 0:00:46.3]} 52...
Bc4 {[%clk 0:00:33]} 53. Kf4 {[%clk 0:00:27.9]} 53... Be2 {[%clk 0:00:32.6]} 54.
Kf5 {[%clk 0:00:28.2]} 54... Ke8 {[%clk 0:00:20.2]} 55. Kf6 {[%clk 0:00:25.7]}
55... Bc4 {[%clk 0:00:20.2]} 56. e7 {[%clk 0:00:25.7]} 56... Bb5 {[%clk
0:00:20.5]} 57. Ne6 {[%clk 0:00:25.3]} 57... Bc6 {[%clk 0:00:18.3]} 58. Ng7+
{[%clk 0:00:24.7]} 58... Kd7 {[%clk 0:00:18]} 59. e8=Q+ {[%clk 0:00:24.8]} 59...
Kc7 {[%clk 0:00:18.9]} 60. Qe7+ {[%clk 0:00:24.7]} 60... Kb6 {[%clk 0:00:19]}
61. Qc5+ {[%clk 0:00:24.2]} 61... Kc7 {[%clk 0:00:19.9]} 62. Ne6+ {[%clk
0:00:24.1]} 62... Kd7 {[%clk 0:00:19.7]} 63. Qe7+ {[%clk 0:00:24.4]} 63... Kc8
{[%clk 0:00:20.2]} 64. Qc7# {[%clk 0:00:25]} 1-0

[Event "Early-Titled-Tuesday-Blitz-March-05-2024"]
[Site "Chess.com"]
[Date "2024.03.05"]
[Round "9"]
[White "corvachesky"]
[Black "Smoking_Crow"]
[Result "1-0"]
[WhiteElo "2512"]
[BlackElo "2615"]
[TimeControl "180+1"]
[EndTime "9:47:01 PST"]
[Termination "corvachesky won by checkmate"]

1. Nf3 {[%clk 0:02:41.7]} 1... d5 {[%clk 0:02:58.3]} 2. d4 {[%clk 0:02:41.6]}
2... Nf6 {[%clk 0:02:55.6]} 3. g3 {[%clk 0:02:41.4]} 3... Bf5 {[%clk 0:02:53.7]}
4. Bg2 {[%clk 0:02:42.3]} 4... e6 {[%clk 0:02:51.1]} 5. c4 {[%clk 0:02:42.5]}
5... c6 {[%clk 0:02:13.4]} 6. Nc3 {[%clk 0:02:39]} 6... Be7 {[%clk 0:02:10.5]}
7. Qb3 {[%clk 0:02:38.5]} 7... Qb6 {[%clk 0:02:09.8]} 8. c5 {[%clk 0:02:38.9]}
8... Qxb3 {[%clk 0:02:07.6]} 9. axb3 {[%clk 0:02:39.8]} 9... O-O {[%clk
0:02:05.8]} 10. b4 {[%clk 0:02:37.8]} 10... a6 {[%clk 0:02:05.9]} 11. h3 {[%clk
0:02:36.3]} 11... Nbd7 {[%clk 0:02:04.9]} 12. Bf4 {[%clk 0:02:35.4]} 12... Rac8
{[%clk 0:01:57.9]} 13. Nd2 {[%clk 0:02:32.2]} 13... Bg6 {[%clk 0:01:54]} 14. Nb3
{[%clk 0:02:29.8]} 14... Bd8 {[%clk 0:01:53.5]} 15. Na5 {[%clk 0:02:28.4]} 15...
Bxa5 {[%clk 0:01:53]} 16. bxa5 {[%clk 0:02:29.3]} 16... Rfe8 {[%clk 0:01:41.1]}
17. Bd6 {[%clk 0:01:57.7]} 17... e5 {[%clk 0:01:41]} 18. dxe5 {[%clk 0:01:54.3]}
18... Nxe5 {[%clk 0:01:40.3]} 19. Bxe5 {[%clk 0:01:38.9]} 19... Rxe5 {[%clk
0:01:39.2]} 20. b4 {[%clk 0:01:35.7]} 20... Rce8 {[%clk 0:01:37.2]} 21. e3
{[%clk 0:01:33.3]} 21... d4 {[%clk 0:01:36.5]} 22. Nd1 {[%clk 0:01:33.5]} 22...
Bc2 {[%clk 0:01:30.2]} 23. O-O {[%clk 0:01:30.3]} 23... Bxd1 {[%clk 0:01:27.8]}
24. Rfxd1 {[%clk 0:01:31.2]} 24... dxe3 {[%clk 0:01:28.6]} 25. fxe3 {[%clk
0:01:22.4]} 25... Rxe3 {[%clk 0:01:29.4]} 26. b5 {[%clk 0:01:16.4]} 26... axb5
{[%clk 0:01:27.3]} 27. a6 {[%clk 0:01:14.6]} 27... bxa6 {[%clk 0:01:26.6]} 28.
Bxc6 {[%clk 0:01:06.7]} 28... Rc8 {[%clk 0:01:23.3]} 29. Kf2 {[%clk 0:00:57.3]}
29... Re5 {[%clk 0:01:11.1]} 30. Bb7 {[%clk 0:00:42.6]} 30... Rf8 {[%clk
0:01:08.8]} 31. c6 {[%clk 0:00:42.3]} 31... Ne4+ {[%clk 0:01:08]} 32. Kg2 {[%clk
0:00:39.1]} 32... Nc5 {[%clk 0:01:08.8]} 33. Rdc1 {[%clk 0:00:26.7]} 33... Nb3
{[%clk 0:00:45.8]} 34. c7 {[%clk 0:00:24.8]} 34... Ree8 {[%clk 0:00:43.1]} 35.
Bxa6 {[%clk 0:00:18]} 35... Nxa1 {[%clk 0:00:37.5]} 36. Rxa1 {[%clk 0:00:18.1]}
36... b4 {[%clk 0:00:38.1]} 37. Rb1 {[%clk 0:00:18.1]} 37... Re6 {[%clk
0:00:33.3]} 38. c8=Q {[%clk 0:00:16.3]} 38... Rxc8 {[%clk 0:00:31.3]} 39. Bxc8
{[%clk 0:00:16.9]} 39... Rb6 {[%clk 0:00:32.2]} 40. Bf5 {[%clk 0:00:16.5]} 40...
g6 {[%clk 0:00:31.3]} 41. Bc2 {[%clk 0:00:16.4]} 41... Kg7 {[%clk 0:00:31.8]}
42. Bb3 {[%clk 0:00:16.9]} 42... f5 {[%clk 0:00:30.4]} 43. Rc1 {[%clk
0:00:16.7]} 43... Kf6 {[%clk 0:00:30]} 44. Rc7 {[%clk 0:00:16.3]} 44... h6
{[%clk 0:00:29]} 45. Rc4 {[%clk 0:00:16.6]} 45... Ke5 {[%clk 0:00:27.6]} 46. Kf3
{[%clk 0:00:17]} 46... g5 {[%clk 0:00:22.5]} 47. Ke3 {[%clk 0:00:17.3]} 47...
Rb5 {[%clk 0:00:20.2]} 48. Rc6 {[%clk 0:00:15.7]} 48... h5 {[%clk 0:00:17.9]}
49. Re6# {[%clk 0:00:14.4]} 1-0